fUSD/lending_fUSD_20240819
["ID","MTS","AMOUNT","RATE_DAILY","PERIOD"]
[335315494,1724104238533,-32211.70718728,0.00011,2]
[335315495,1724104238544,-2013.60357285,0.00011,2]
[335315496,1724104238555,-319.8,0.00011,2]
[335315497,1724104238566,-311.21120683,0.00011,2]
[335315498,1724104238577,-60924.39334028,0.00011,2]
[335315499,1724104238612,-1849.01762945,0.00011,2]
[335315677,1724104240450,-311.70176025,0.000109,2]
[335315679,1724104240460,-1153.61983835,0.00011,2]
[335315681,1724104240471,-1774.67115908,0.00011,2]
[335315685,1724104240505,-607.5499219,0.00011,2]
[335315693,1724104240568,-500.54994624,0.00011,2]
[335315695,1724104240579,-15240.96322548,0.00011,2]
[335315697,1724104240590,-211385.97932372,0.00011,2]
[335315700,1724104240631,-12530244.08485568,0.00011,2]
[335315702,1724104240640,-250.0,0.00011,2]
[335315704,1724104240649,-2406295.00792976,0.00011,2]
[335315706,1724104240661,-1051.05102404,0.00011,2]
[335315708,1724104240670,-2303.74,0.00011,2]
[335315710,1724104240679,-1000.0,0.00011056,2]
[335315712,1724104240688,-420.6341917,0.00011299,2]
[335315714,1724104240700,-420.0,0.00011325,2]
[335315715,1724104240709,-300.0,0.00011329,2]
[335315717,1724104240718,-388.3389585,0.00011372,2]
[335315719,1724104240727,-248.0,0.00011535,2]
[335315721,1724104240737,-700.0,0.00011607,2]
[335315722,1724104240745,-633.79355,0.000118,2]
[335315723,1724104240755,-8365.95045922,0.00011808,2]
[335315724,1724104240764,-1268.70382787,0.00011808,2]
[335315725,1724104240774,-952.9218479,0.00011808,2]
[335315726,1724104240783,-633.79355,0.0001181,2]
[335315727,1724104240791,-633.79355,0.0001184,2]
[335315728,1724104240800,-633.79355,0.0001188,2]
[335315729,1724104240809,-622.02098316,0.00011911,2]
[335315730,1724104240818,-633.79355,0.0001192,2]
[335315731,1724104240828,-633.79355,0.0001196,2]
[335315732,1724104240837,-600.0,0.00011963,2]
[335315733,1724104240846,-155.0,0.00012,2]
[335315734,1724104240855,-5000.0,0.00012,2]
[335315735,1724104240866,-171.91538721,0.00012,2]
[335315737,1724104240875,-1100.0,0.00012,2]
[335315739,1724104240884,-500.0,0.00012005,2]
[335315740,1724104240893,-891.575,0.00012085,2]
[335315741,1724104240903,-150.0,0.00012085,2]
[335315742,1724104240913,-400.0,0.0001215,2]
[335315743,1724104240923,-200.0,0.00012167,2]
[335315745,1724104240932,-1000.0,0.00012284,2]
[335315746,1724104240941,-231.27958502,0.00012342,2]
[335315748,1724104240950,-200.0,0.00012342,2]
[335315749,1724104240960,-587.0,0.00012454,2]
[335315750,1724104240968,-623.6,0.00012695,2]
[335315751,1724104240977,-1676.8,0.000128,2]
[335315752,1724104240986,-2000.0,0.000128,2]
[335315753,1724104240995,-500.0,0.00013131,2]
[335315754,1724104241005,-151.0,0.00013151,2]
[335315755,1724104241013,-918.0,0.00013327,2]
[335315756,1724104241022,-400.0,0.00013365,2]
[335315757,1724104241031,-500.0,0.0001338,2]
[335315758,1724104241040,-200.0,0.00013383,2]
[335315759,1724104241049,-918.0,0.00013464,2]
[335315760,1724104241058,-1000.0,0.00013513,2]
[335315761,1724104241067,-918.0,0.00013602,2]
[335315762,1724104241076,-823.0,0.00013696,2]
[335315763,1724104241084,-200.0,0.00013699,2]
[335315764,1724104241093,-475.62,0.00013699,2]
[335315765,1724104241102,-2751.0,0.00013699,2]
[335315766,1724104241111,-5800.0,0.00013699,2]
[335315767,1724104241120,-500.0,0.00013699,2]
[335315768,1724104241129,-300.0,0.00013699,2]
[335315769,1724104241138,-300.0,0.00013699,2]
[335315770,1724104241147,-300.0,0.00013699,2]
[335315771,1724104241156,-918.0,0.00013739,2]
[335315772,1724104241165,-669.5429279,0.00013739,2]
[335315773,1724104241174,-300.0,0.00013799,2]
[335315774,1724104241183,-300.0,0.00013799,2]
[335315775,1724104241192,-300.0,0.00013799,2]
[335315776,1724104241201,-2000.0,0.000138,2]
[335315777,1724104241210,-619127.815392,0.000138,3]
[335315778,1724104241219,-200.0,0.00013873,2]
[335315779,1724104241228,-918.0,0.00013876,2]
[335315780,1724104241237,-300.0,0.00013899,2]
[335315781,1724104241247,-300.0,0.00013899,2]
[335315782,1724104241256,-300.0,0.00013899,2]
[335315783,1724104241265,-243.0,0.000139,2]
[335315784,1724104241274,-606815.919862,0.000139,3]
[335315785,1724104241283,-1093.168809,0.00013973,2]
[335315786,1724104241292,-537.99526964,0.00014,2]
[335315787,1724104241301,-1150.0,0.00014,2]
[335315788,1724104241310,-150.0,0.00014,2]
[335315789,1724104241320,-918.0,0.00014014,2]
[335315790,1724104241329,-918.0,0.00014151,2]
[335315791,1724104241338,-303.98208233,0.00014245,2]
[335315792,1724104241347,-5800.0,0.00014384,2]
[335315793,1724104241356,-243.0,0.000144,2]
[335315794,1724104241365,-918.0,0.00014563,2]
[335315795,1724104241374,-400.0,0.0001458,2]
[335315796,1724104241383,-200.0,0.000146,2]
[335315797,1724104241392,-155.0,0.0001466,2]
[335315798,1724104241401,-1000.0,0.00014741,2]
[335315799,1724104241412,-1093.168809,0.00014795,2]
[335315800,1724104241421,-2000.0,0.000148,2]
[335315801,1724104241429,-200.0,0.00014838,2]
[335315802,1724104241439,-243.0,0.000149,2]
[335315803,1724104241448,-211.6131542,0.000149,2]
[335315804,1724104241459,-211.61315419,0.000149,2]
[335315805,1724104241467,-623.6,0.00014933,2]
[335315806,1724104241476,-397.87694136,0.00015,2]
[335315807,1724104241485,-194.0725797,0.00015,2]
[335315808,1724104241494,-495.0,0.00015,2]
[335315809,1724104241503,-11548.0,0.00015,2]
[335315810,1724104241512,-1763.0,0.00015,2]
[335315811,1724104241521,-150.0,0.00015,2]
[335315812,1724104241531,-150.0,0.00015,2]
[335315813,1724104241540,-1152.0,0.00015061,2]
[335315814,1724104241551,-300.0,0.00015068,2]
[335315815,1724104241560,-5800.0,0.00015068,2]
[335315816,1724104241570,-150.0,0.00015085,2]
[335315817,1724104241579,-500.0,0.000151,2]
[335315818,1724104241588,-400.0,0.00015242,2]
[335315819,1724104241596,-17950.45,0.0001531,2]
[335315820,1724104241606,-19059.75,0.0001531,2]
[335315821,1724104241615,-243.0,0.000154,2]
[335315822,1724104241624,-1093.168809,0.00015616,2]
[335315823,1724104241633,-5800.0,0.00015753,2]
[335315824,1724104241642,-2000.0,0.000158,2]
[335315825,1724104241651,-167.0,0.00015831,2]
[335315826,1724104241660,-243.0,0.000159,3]
[335315827,1724104241669,-1200.0,0.00016,2]
[335315828,1724104241678,-2000.0,0.00016,2]
[335315829,1724104241687,-286.788537,0.00016,2]
[335315830,1724104241699,-286.788537,0.00016,2]
[335315831,1724104241708,-150.0,0.00016,2]
[335315832,1724104241717,-2000.0,0.0001601,2]
[335315833,1724104241726,-2000.0,0.0001602,2]
[335315834,1724104241735,-2311.200948,0.0001603,2]
[335315835,1724104241745,-9999.99,0.00016116,2]
[335315836,1724104241754,-400.0,0.00016207,2]
[335315837,1724104241763,-167.0,0.00016354,2]
[335315838,1724104241774,-243.0,0.000164,4]
[335315839,1724104241783,-500.0,0.0001642,2]
[335315840,1724104241792,-151.0,0.00016438,2]
[335315841,1724104241801,-1093.168809,0.00016438,2]
[335315842,1724104241811,-300.0,0.00016438,2]
[335315843,1724104241820,-5800.0,0.00016438,2]
[335315844,1724104241829,-6099.54047433,0.000165,2]
[335315845,1724104241838,-1613.0,0.00016562,2]
[335315846,1724104241847,-173.69,0.00016712,2]
[335315847,1724104241856,-500.0,0.00016731,2]
[335315848,1724104241865,-559.099999,0.000168,2]
[335315849,1724104241874,-167.0,0.00016876,2]
[335315850,1724104241883,-243.0,0.000169,4]
[335315851,1724104241893,-7621.87,0.00016986,2]
[335315852,1724104241902,-150.0,0.00017,2]
[335315853,1724104241911,-7000.0,0.00017148,3]
[335315854,1724104241921,-623.6,0.00017171,2]
[335315855,1724104241932,-5375.4,0.000172,7]
[335315856,1724104241942,-2158.69995352,0.00017214,2]
[335315857,1724104241951,-600.0,0.00017246,2]
[335315858,1724104241960,-1093.168809,0.0001726,2]
[335315859,1724104241970,-167.0,0.00017399,2]
[335315860,1724104241978,-243.0,0.000174,5]
[335315861,1724104241987,-676.84905745,0.0001742,2]
[335315862,1724104241996,-475.62,0.00017534,2]
[335315863,1724104242006,-661.57,0.00017592,2]
[335315864,1724104242016,-187.07,0.00017592,2]
[335315865,1724104242025,-243.0,0.000179,5]
[335315866,1724104242034,-167.0,0.00017921,2]
[335315867,1724104242043,-666.62922854,0.00018,30]
[335315868,1724104242052,-155.0,0.00018,2]
[335315869,1724104242061,-1250.0,0.00018,2]
[335315870,1724104242069,-1001.64,0.00018,2]
[335315871,1724104242078,-319.18,0.00018,2]
[335315872,1724104242087,-150.0,0.00018,2]
[335315873,1724104242096,-150.0,0.00018,2]
[335315874,1724104242106,-150.0,0.00018,2]
[335315875,1724104242115,-1093.168809,0.00018082,2]
[335315876,1724104242124,-600.0,0.0001821,2]
[335315877,1724104242133,-2258.0,0.00018212,2]
[335315878,1724104242142,-4390.45043,0.0001824,30]
[335315879,1724104242151,-243.0,0.000184,6]
[335315880,1724104242160,-167.0,0.00018444,2]
[335315881,1724104242169,-8759.23332978,0.000186,2]
[335315882,1724104242178,-1500.0,0.00018734,2]
[335315883,1724104242187,-1361.24369803,0.00018764,2]
[335315884,1724104242196,-1500.0,0.00018773,2]
[335315885,1724104242205,-1500.0,0.00018886,2]
[335315886,1724104242214,-243.0,0.000189,6]
[335315887,1724104242223,-1001.64,0.000189,2]
[335315888,1724104242232,-1500.0,0.00018983,2]
[335315889,1724104242240,-1000.0,0.00018999,5]
[335315890,1724104242249,-150.01,0.00018999,2]
[335315891,1724104242258,-190610.62677964,0.00019,2]
[335315892,1724104242267,-60410.48956689,0.00019,2]
[335315893,1724104242276,-311.48579066,0.00019,120]
[335315894,1724104242285,-901.85811604,0.00019,2]
[335315895,1724104242294,-155.0,0.00019,2]
[335315896,1724104242303,-155.0,0.00019,2]
[335315897,1724104242312,-2236.90080457,0.00019,2]
[335315898,1724104242322,-155.90438375,0.00019,2]
[335315899,1724104242331,-495.0,0.00019,2]
[335315900,1724104242340,-495.0,0.00019,2]
[335315901,1724104242496,-178.135779,0.00019,2]
[335315902,1724104242505,-1069.184295,0.00019,2]
[335315903,1724104242514,-1957.2383606,0.00019009,2]
[335315904,1724104242523,-233.9534091,0.00019022,2]
[335315905,1724104242532,-61081.3640682,0.00019035,2]
[335315906,1724104242542,-3417.55676722,0.00019048,2]
[335315907,1724104242555,-3410.45938528,0.00019048,2]
[335315908,1724104242564,-23225.3543025,0.00019048,5]
[335315909,1724104242572,-11735.79,0.00019151,2]
[335315910,1724104242582,-500.0,0.00019178,2]
[335315911,1724104242591,-1000.0,0.00019178,2]
[335315912,1724104242600,-1000.0,0.00019178,2]
[335315913,1724104242610,-1007.41901363,0.00019178,2]
[335315914,1724104242620,-2076.27968458,0.00019178,2]
[335315915,1724104242629,-3168.0,0.00019178,2]
[335315916,1724104242639,-60670.3,0.00019178,2]
[335315917,1724104242648,-22706.82,0.00019178,2]
[335315918,1724104242658,-200.0,0.00019178,2]
[335315919,1724104242667,-200.0,0.00019178,2]
[335315920,1724104242676,-200.0,0.00019178,2]
[335315921,1724104242686,-200.0,0.00019178,2]
[335315922,1724104242697,-200.0,0.00019178,2]
[335315923,1724104242706,-200.0,0.00019178,2]
[335315924,1724104242715,-189.0,0.00019178,2]
[335315925,1724104242723,-750.0,0.000192,2]
[335315926,1724104242733,-243.0,0.000194,7]
[335315927,1724104242742,-623.6,0.00019409,2]
[335315928,1724104242751,-500.0,0.00019439,2]
[335315929,1724104242760,-500.0,0.00019466,2]
[335315930,1724104242770,-1000.0,0.000195,2]
[335315931,1724104242782,-319.18,0.0001954,2]
[335315932,1724104242791,-3290.82544107,0.00019562,120]
[335315933,1724104242800,-800.0,0.00019587,2]
[335315934,1724104242809,-173.69,0.00019658,2]
[335315935,1724104242818,-500.0,0.00019758,2]
[335315936,1724104242827,-150.0,0.00019773,2]
[335315937,1724104242836,-300.0,0.00019799,2]
[335315938,1724104242845,-300.0,0.00019799,2]
[335315939,1724104242854,-300.0,0.00019799,2]
[335315940,1724104242863,-524.07661507,0.000198,2]
[335315941,1724104242873,-367085.09278378,0.000198,2]
[335315942,1724104242883,-151.0,0.000198,2]
[335315943,1724104242892,-151.0,0.000198,2]
[335315944,1724104242901,-151.0,0.000198,2]
[335315945,1724104242910,-151.0,0.000198,2]
[335315946,1724104242919,-151.0,0.000198,2]
[335315947,1724104242929,-151.0,0.000198,2]
[335315948,1724104242938,-151.0,0.000198,2]
[335315949,1724104242948,-151.0,0.000198,2]
[335315950,1724104242957,-151.0,0.000198,2]
[335315951,1724104242966,-151.0,0.000198,2]
[335315952,1724104242975,-151.0,0.000198,2]
[335315953,1724104242985,-151.0,0.000198,2]
[335315954,1724104242994,-151.0,0.000198,2]
[335315955,1724104243005,-151.0,0.000198,2]
[335315956,1724104243015,-151.0,0.000198,2]
[335315957,1724104243026,-151.0,0.000198,2]
[335315958,1724104243037,-151.0,0.000198,2]
[335315959,1724104243047,-197.7733,0.000198,2]
[335315960,1724104243056,-151.0,0.000198,2]
[335315961,1724104243065,-254.69667,0.000198,2]
[335315962,1724104243074,-1001.64,0.000198,2]
[335315963,1724104243083,-151.392538,0.000198,2]
[335315964,1724104243092,-151.0,0.000198,2]
[335315965,1724104243103,-151.0,0.000198,2]
[335315966,1724104243112,-151.0,0.000198,2]
[335315968,1724104243121,-151.0,0.000198,2]
[335315970,1724104243131,-151.0,0.000198,2]
[335315972,1724104243141,-278.44224,0.000198,2]
[335315974,1724104243149,-278.44224,0.000198,2]
[335315976,1724104243159,-152.024759,0.000198,2]
[335315978,1724104243168,-151.0,0.000198,2]
[335315980,1724104243177,-151.0,0.000198,2]
[335315982,1724104243186,-151.0,0.000198,2]
[335315983,1724104243195,-73477.25912874,0.00019856,2]
[335315984,1724104243205,-151.0,0.00019856,2]
[335315985,1724104243215,-151.0,0.00019856,2]
[335315986,1724104243224,-151.0,0.00019856,2]
[335315987,1724104243233,-151.0,0.00019856,2]
[335315988,1724104243243,-151.0,0.00019856,2]
[335315989,1724104243251,-151.0,0.00019856,2]
[335315990,1724104243260,-151.0,0.00019856,2]
[335315991,1724104243269,-151.0,0.00019856,2]
[335315992,1724104243279,-299.926808,0.00019856,2]
[335315993,1724104243287,-151.0,0.00019856,2]
[335315995,1724104243296,-151.0,0.00019856,2]
[335315997,1724104243306,-151.0,0.00019856,2]
[335315999,1724104243316,-151.0,0.00019856,2]
[335316001,1724104243326,-226.250903,0.00019856,2]
[335316003,1724104243336,-226.250903,0.00019856,2]
[335316004,1724104243347,-151.0,0.00019856,2]
[335316005,1724104243357,-151.0,0.00019856,2]
[335316006,1724104243365,-151.0,0.00019856,2]
[335316007,1724104243374,-151.0,0.00019856,2]
[335316008,1724104243383,-151.0,0.00019856,2]
[335316009,1724104243392,-151.0,0.00019856,2]
[335316010,1724104243401,-283.1572,0.00019856,2]
[335316011,1724104243411,-151.0,0.00019856,2]
[335316012,1724104243420,-283.1572,0.00019856,2]
[335316013,1724104243430,-151.0,0.00019856,2]
[335316014,1724104243440,-151.0,0.00019856,2]
[335316015,1724104243450,-151.0,0.00019856,2]
[335316016,1724104243459,-151.0,0.00019856,2]
[335316017,1724104243468,-151.0,0.00019856,2]
[335316018,1724104243478,-151.0,0.00019856,2]
[335316019,1724104243486,-151.0,0.00019856,2]
[335316020,1724104243495,-151.0,0.00019856,2]
[335316021,1724104243504,-151.0,0.00019856,2]
[335316022,1724104243514,-172.310991,0.00019856,2]
[335316023,1724104243523,-151.0,0.00019856,2]
[335316024,1724104243534,-151.0,0.00019856,2]
[335316025,1724104243544,-151.0,0.00019856,2]
[335316026,1724104243554,-207.16337,0.00019856,2]
[335316027,1724104243563,-207.16337,0.00019856,2]
[335316028,1724104243572,-151.0,0.00019856,2]
[335316029,1724104243581,-151.0,0.00019856,2]
[335316030,1724104243591,-151.0,0.00019856,2]
[335316031,1724104243600,-151.0,0.00019856,2]
[335316032,1724104243610,-151.0,0.00019856,2]
[335316033,1724104243619,-151.0,0.00019856,2]
[335316034,1724104243629,-151.0,0.00019856,2]
[335316035,1724104243639,-151.0,0.00019856,2]
[335316036,1724104243649,-151.0,0.00019856,2]
[335316037,1724104243658,-151.0,0.00019856,2]
[335316038,1724104243667,-151.0,0.00019856,2]
[335316039,1724104243677,-151.0,0.00019856,2]
[335316040,1724104243687,-151.0,0.00019856,2]
[335316041,1724104243699,-227.019419,0.00019856,2]
[335316042,1724104243708,-422.865467,0.00019856,2]
[335316043,1724104243717,-227.019419,0.00019856,2]
[335316044,1724104243729,-151.0,0.00019856,2]
[335316045,1724104243739,-151.0,0.00019856,2]
[335316046,1724104243749,-151.0,0.00019856,2]
[335316048,1724104243758,-151.0,0.00019856,2]
[335316049,1724104243767,-982.26281774,0.0001989,2]
[335316050,1724104243780,-2026.13795987,0.000199,2]
[335316051,1724104243791,-4621.29291739,0.000199,3]
[335316052,1724104243801,-243.0,0.000199,7]
[335316054,1724104243811,-600.0,0.000199,7]
[335316056,1724104243820,-22760.13652431,0.000199,2]
[335316058,1724104243830,-11563.79506042,0.000199,2]
[335316059,1724104243839,-11563.79506039,0.000199,2]
[335316060,1724104243848,-11563.79506039,0.000199,2]
[335316061,1724104243857,-1530.1466914,0.00019945,2]
[335316063,1724104243867,-1149.0,0.00019965,2]
[335316066,1724104243877,-5556.8794344,0.00019986,2]
[335316067,1724104243886,-49714.3508619,0.00019986,2]
[335316068,1724104243895,-38347.3376556,0.00019986,2]
[335316069,1724104243904,-233.9534091,0.00019986,2]
[335316070,1724104243914,-233.9534091,0.00019986,2]
[335316071,1724104243924,-1962.9160867,0.00019986,2]
[335316072,1724104243933,-1968.5938128,0.00019986,2]
[335316073,1724104243942,-300.0,0.00019999,2]
[335316074,1724104243951,-300.0,0.00019999,2]
[335316075,1724104243960,-308.44871691,0.0002,2]
[335316076,1724104243969,-218.31571946,0.0002,2]
[335316077,1724104243978,-3240.08465812,0.0002,2]
[335316078,1724104243987,-150.0,0.0002,2]
[335316079,1724104243997,-294.18073814,0.0002,2]
[335316080,1724104244006,-3779.01583855,0.0002,2]
[335316081,1724104244015,-6653.0,0.0002,2]
[335316082,1724104244024,-3950.0,0.0002,2]
[335316083,1724104244033,-3916.57452606,0.0002,2]
[335316084,1724104244042,-193.0,0.0002,2]
[335316085,1724104244051,-991.0,0.0002,2]
[335316086,1724104244060,-30000.0,0.0002,30]
[335316087,1724104244069,-200.0,0.0002,2]
[335316088,1724104244078,-186.0,0.0002,2]
[335316089,1724104244087,-991.0,0.0002,2]
[335316090,1724104244097,-632.11934503,0.0002,2]
[335316091,1724104244106,-849.13854473,0.0002,2]
[335316092,1724104244115,-399112.01794217,0.0002,2]
[335316093,1724104244129,-1236.68727822,0.0002,2]
[335316094,1724104244138,-573.24564917,0.0002,2]
[335316095,1724104244148,-208.0,0.0002,2]
[335316096,1724104244159,-193.0,0.0002,2]
[335316097,1724104244168,-494.22410505,0.0002,2]
[335316098,1724104244178,-9297.57583389,0.0002,10]
[335316099,1724104244190,-10702.42416611,0.0002,10]
[335316100,1724104244199,-5404.89148271,0.0002,10]
[335316101,1724104244209,-14595.10851729,0.0002,10]
[335316102,1724104244219,-20000.0,0.0002,10]
[335316103,1724104244228,-7557.60798491,0.0002,10]
[335316104,1724104244238,-3600.0,0.0002,10]
[335316105,1724104244247,-208.0,0.0002,2]
[335316106,1724104244256,-81460.09123923,0.0002,60]
[335316107,1724104244441,-200.0,0.00013773,2]
[335316108,1724104244450,-632.28687525,0.00015,2]
[335316109,1724104244462,-350.30312475,0.00015,2]
[335316110,1724104244471,-286.51723086,0.00015,2]
[335316111,1724104244482,-696.07276914,0.00015,2]
[335316112,1724104244491,-982.59,0.00015,2]
[335316113,1724104244501,-982.59,0.00015,2]
[335316114,1724104244510,-982.59,0.00015,2]
[335316115,1724104244519,-982.59,0.00015,2]
[335316116,1724104244529,-982.59,0.00015,2]
[335316117,1724104244538,-982.59,0.00015,2]
[335316118,1724104244547,-982.59,0.00015,2]
[335316119,1724104244557,-982.59,0.00015,2]
[335316120,1724104244566,-982.59,0.00015,2]
[335316121,1724104244575,-235.74669668,0.00015025,15]
[335316122,1724104244584,-400.0,0.00015142,2]
[335316123,1724104244593,-600.0,0.00017146,2]
[335316124,1724104244603,-649.41056628,0.00019487,2]
[335316125,1724104244613,-151.0,0.000198,2]
[335316126,1724104244622,-5496.5342969,0.0002,60]
[335316127,1724104244637,-5066.20000016,0.0002,60]
[335316128,1724104244652,-982.59,0.00015,2]
[335316129,1724104244661,-5794.06018534,0.0002,60]
[335316130,1724104244672,-353.51439523,0.0002,60]
[335316131,1724104244683,-276.32554524,0.0002,60]
[335316132,1724104244697,-4377.64503448,0.0002,60]
[335316133,1724104246387,-311.70176025,0.000109,2]
[335316134,1724104246397,-982.59,0.00015,2]
[335316135,1724104246406,-982.59,0.00015,2]
[335316136,1724104246416,-867.87420624,0.00015,2]
[335316137,1724104246427,-114.71579376,0.00015,2]
[335316138,1724104246437,-982.59,0.00015,2]
[335316139,1724104246448,-982.59,0.00015,2]
[335316140,1724104246457,-866.56509693,0.00015,2]
[335316141,1724104246469,-116.02490307,0.00015,2]
[335316142,1724104246478,-982.59,0.00015,2]
[335316143,1724104246488,-982.59,0.00015,2]
[335316144,1724104246497,-982.59,0.00015,2]
[335316145,1724104246507,-982.59,0.00015,2]
[335316146,1724104246516,-982.59,0.00015,2]
[335316147,1724104246526,-982.59,0.00015,2]
[335316148,1724104246535,-151.0,0.000198,2]
[335316149,1724104246682,-5613.37075571,0.0002,60]
[335316151,1724104246696,-11529.93014519,0.0002,60]
[335316153,1724104246708,-5946.369,0.0002,60]
[335316155,1724104246720,-379.8763603,0.0002,60]
[335316157,1724104246732,-2094.85587642,0.0002,60]
[335316160,1724104246754,-500.0,0.00010339,2]
[335316163,1724104246763,-982.59,0.00015,2]
[335316165,1724104246774,-1065.33756546,0.0002,60]
[335316167,1724104246786,-2899.07416389,0.0002,60]
[335316170,1724104246796,-42000.00002,0.0002,60]
[335316172,1724104246807,-2118.29840584,0.0002,60]
[335316174,1724104246820,-1470.7035555,0.0002,60]
[335316175,1724104246831,-6569.47907139,0.0002,60]
[335316176,1724104246841,-155.13584695,0.0002,2]
[335316177,1724104246850,-193.0,0.0002,2]
[335316178,1724104246859,-150.0,0.0002,2]
[335316179,1724104246869,-2735.70533876,0.0002,7]
[335316180,1724104246878,-1528.98940019,0.0002,5]
[335316181,1724104246888,-318.90172345,0.0002,2]
[335316182,1724104246899,-253.52,0.0002,2]
[335316183,1724104246919,-1486.34175,0.0002,2]
[335316184,1724104359393,158.34,0.000139,31]
[335316185,1724104359429,158.34,0.000139,31]
[335316186,1724104359496,158.34,0.000139,31]
[335316187,1724104359554,158.34,0.000139,31]
[335316191,1724104961764,158.36,0.000139,31]
[335316192,1724104961821,158.36,0.000139,31]
[335316193,1724104961880,158.36,0.000139,31]
[335316194,1724104961951,158.36,0.000139,31]
[335316195,1724104962002,158.36,0.000139,31]
[335316196,1724104962064,158.36,0.000139,31]
[335316197,1724104962126,158.36,0.000139,31]
[335316201,1724105221580,522.32,9.315e-05,2]
[335316247,1724105431460,-300.0,9.999e-05,2]
[335316250,1724105431469,-1050.0,0.0001,2]
[335316253,1724105431479,-2799.96824343,0.0001,2]
[335316255,1724105431488,-500.0,0.00010163,2]
[335316257,1724105431496,-500.0,0.00010172,2]
[335316259,1724105431505,-500.0,0.00010181,2]
[335316261,1724105431515,-500.0,0.00010189,2]
[335316263,1724105431524,-500.0,0.00010198,2]
[335316265,1724105431533,-500.0,0.00010207,2]
[335316266,1724105431542,-500.0,0.00010216,2]
[335316267,1724105431551,-500.0,0.00010225,2]
[335316268,1724105431560,-500.0,0.00010233,2]
[335316269,1724105431569,-500.0,0.00010242,2]
[335316270,1724105431578,-500.0,0.00010251,2]
[335316271,1724105431587,-500.0,0.0001026,2]
[335316272,1724105431596,-500.0,0.00010269,2]
[335316273,1724105431605,-500.0,0.00010277,2]
[335316274,1724105431614,-500.0,0.00010286,2]
[335316275,1724105431623,-500.0,0.00010295,2]
[335316276,1724105431633,-687.03,0.00010295,2]
[335316277,1724105431643,-500.0,0.00010304,2]
[335316278,1724105431652,-500.0,0.00010313,2]
[335316279,1724105431661,-299.99,0.00010313,2]
[335316280,1724105431670,-500.0,0.00010321,2]
[335316281,1724105431680,-500.0,0.0001033,2]
[335316282,1724105431689,-1265.7694,0.000108,2]
[335316283,1724105431698,-500.0,0.00010877,2]
[335316284,1724105431708,-250.0,0.00010881,2]
[335316285,1724105431717,-150.0,0.00010898,2]
[335316286,1724105431726,-26747.8837,0.00010899,2]
[335316287,1724105431736,-4913.7551,0.00010899,2]
[335316288,1724105431745,-84460.22596859,0.00010899,2]
[335316289,1724105431757,-270.03107511,0.00010899,2]
[335316290,1724105431768,-450.50241639,0.00010899,2]
[335316291,1724105431779,-635.97483763,0.00010899,2]
[335316292,1724105431790,-530.0,0.00010899,2]
[335316293,1724105431800,-11287.10880228,0.00010899,2]
[335316294,1724105431809,-4301.345,0.00010899,2]
[335316295,1724105431818,-449.5209,0.00010899,2]